[Event "76th Montenegro Championship 2024"]
[Site "Podgorica"]
[Date "2024.02.11"]
[Round "6.5"]
[White "Draganic, Veljko"]
[Black "Sukovic, Andrej"]
[Result "1-0"]
[ECO "B94"]
[WhiteElo "2323"]
[BlackElo "2339"]
[Annotator "TA"]
[PlyCount "69"]
[EventDate "2024.02.06"]
[EventType "swiss"]
[EventCountry "MNE"]
[SourceTitle "playchess.com"]
[Source "ChessBase"]
[SourceQuality "1"]
[TimeControl "40/5400+30:1800+30"]

{[%evp 12,69,10,12,10,4,14,14,6,0,0,0,39,0,0,0,7,0,0,0,0,0,0,0,0,0,0,0,0,0,0,0,0,0,0,0,0,0,0,0,259,257,362,339,343,361,352,346,613,605,587,578,593,579,788,781,982,728,984,985]} 1. e4 {[%emt 0:00:03]} c5 {[%emt 0:06:52]} 2. Nf3 {[%emt 0:00:04]} d6 {[%emt 0:00:05]} 3. d4 {[%emt 0:00:04]} cxd4 {[%emt 0:00:09]} 4. Nxd4 {[%emt 0:00:04]} Nf6 {[%emt 0:00:07]} 5. Nc3 {[%emt 0:00:03]} a6 {[%emt 0:00:30]} 6. Bg5 {[%emt 0:00:06]} Nbd7 {[%emt 0:00:07]} 7. Bc4 {[%emt 0:02:13]} Qb6 {[%emt 0:02:43]} 8. Bb3 {[%emt 0:00:48]} e6 {[%emt 0:00:12]} 9. Qd2 {[%emt 0:07:11]} Be7 {[%emt 0:00:13] The position is equal.} 10. O-O-O {[%emt 0:01:08]} Nc5 {[%emt 0:00:49]} 11. Rhe1 {[%emt 0:06:12][%cal Od4f5] [#] Nf5! would now be deadly.} O-O {[%emt 0:09:12]} 12. f4 {[%emt 0:04:55] e5 is the strong threat.} h6 {[%emt 0:01:25]} 13. Bxf6 {[%emt 0:00:43]} Bxf6 {[%emt 0:00:10]} 14. Kb1 {[%emt 0:00:58][%cal Oh2h4]} Qc7 {[%emt 0:16:39]} 15. g4 {[%emt 0:07:01][%cal Oh2h4]} b5 $1 {[%emt 0:03:45][%cal Bb7b5,Bb5b4,Bb4c3][%mdl 32]} 16. g5 {[%emt 0:04:08]} hxg5 {[%emt 0:00:14]} 17. fxg5 {[%emt 0:01:12]} Be5 {[%emt 0:03:30]} 18. Nf3 {[%emt 0:10:02]} Bd7 {[%emt 0:05:10]} 19. Nxe5 {[%emt 0:04:04]} dxe5 {[%emt 0:00:14]} 20. Qf2 {[%emt 0:07:52] [#] aiming for Qh4.} b4 {[%emt 0:15:45]} 21. Qh4 {[%emt 0:10:06][%cal Oe1e3] Strongly threatening Re3!} bxc3 {[%emt 0:01:21]} 22. Re3 $1 {[%emt 0:00:10] Rh3 would kill now.} Rfd8 $1 {[%emt 0:00:14]} (22... Nxb3 23. Rh3 f5 24. g6 Nd2+ 25. Rxd2 cxd2 26. Qh8#) 23. g6 $1 {[%emt 0:11:46] White threatens gxf7+ and mate.} (23. Rh3 Kf8 24. g6 (24. Qh8+ $2 Ke7 $19) 24... Bb5 $19 (24... fxg6 25. Qh8+ Kf7 26. Rf3+ Ke7 27. Qxg7+ Ke8 28. Qf8#) (24... Nxb3 $2 25. axb3 Bb5 26. Re1 $18)) 23... Bb5 $1 {[%emt 0:07:12][%cal Rd8d1]} (23... fxg6 $2 24. Rh3 Kf7 25. Rf1+ Ke8 26. Rhf3 $18 (26. Rxc3 Bb5 $11)) 24. gxf7+ $40 {[%emt 0:00:22][%mdl 128] White has some attack.} Kxf7 {[%emt 0:03:43]} 25. Rg1 {[%emt 0:01:59] Black must now prevent Rf3+. Some like it hot} Rg8 $2 {[%emt 0:04:39][%mdl 8192]} (25... Nxb3 $11 {and Black is okay.} 26. axb3 Ke8) 26. Rxc3 $18 {[%emt 0:05:06]} Ke8 {[%emt 0:02:52]} (26... Raf8 {is a better defense.} 27. a4 (27. Qf2+ Ke7 $11) 27... Bd7 28. Qf2+ Ke7 29. Rxc5 (29. Qxc5+ Qxc5 30. Rxc5 g5 $18) 29... Rxf2 30. Rxc7 Rf4) 27. Bxe6 {[%emt 0:03:56]} Nxe6 {[%emt 0:00:42]} (27... Rf8 $2 28. Qh5+ Kd8 29. Rd1+ Ke7 30. Bd5 $18) 28. Rxc7 {[%emt 0:00:28]} Nxc7 {[%emt 0:00:04]} 29. Qh5+ {[%emt 0:01:49]} Kd7 $2 {[%emt 0:00:15]} (29... Ke7 30. Qg5+ (30. Qxe5+ Ne6 $11) 30... Kd7 31. Qxe5 Rae8 32. Rxg7+ Rxg7 33. Qxg7+ Kc8) 30. Qf7+ {[%emt 0:00:33] White is clearly winning.} Kc6 {[%emt 0:00:17]} 31. c4 {[%emt 0:00:14]} ({Worse is} 31. Rxg7 Rxg7 32. Qxg7 Kd6 $11) 31... Ba4 {[%emt 0:00:47]} 32. b3 {[%emt 0:02:04][%cal Bb2b3,Bb3a4][%mdl 32]} (32. Rxg7 Rxg7 33. Qxg7 Kb7 $18) 32... Rgf8 {[%emt 0:02:36]} 33. Qxg7 {[%emt 0:01:04]} Rae8 {[%emt 0:02:24]} 34. Rd1 {[%emt 0:01:52]} Kb7 {[%emt 0:00:38]} 35. bxa4 {[%emt 0:00:10] Weighted Error Value: White=0.02 (flawless) /Black=0.43.  Loses game:     	---       	Black=1      Mistake:       	---       	Black=2      Inaccurate:     	---       	Black=2      OK:         	White=12    	Black=8      Best:        	White=3     	Black=2      Strong:       	White=2     	Black=3} 1-0

[Event "76th Montenegro Championship 2024"]
[Site "Podgorica"]
[Date "2024.02.11"]
[Round "6.6"]
[White "Vukcevic, Nemanja"]
[Black "Nikcevic, Nebojsa"]
[Result "1/2-1/2"]
[ECO "C24"]
[WhiteElo "2275"]
[BlackElo "2338"]
[Annotator "TA"]
[PlyCount "49"]
[EventDate "2024.02.06"]
[EventType "swiss"]
[EventCountry "MNE"]
[SourceTitle "playchess.com"]
[Source "ChessBase"]
[SourceQuality "1"]
[TimeControl "40/5400+30:1800+30"]

{[%evp 15,49,35,38,27,37,22,13,10,15,14,13,19,17,17,12,0,0,0,0,0,0,0,0,7,29,15,20,0,0,0,13,0,0,-20,0,-17]} 1. e4 {[%emt 0:01:01]} e5 {[%emt 0:00:07]} 2. Bc4 {[%emt 0:00:10]} Nf6 {[%emt 0:00:56]} 3. d3 {[%emt 0:00:09]} c6 {[%emt 0:00:05]} 4. Nf3 {[%emt 0:00:09]} Be7 {[%emt 0:00:08]} 5. O-O {[%emt 0:00:22]} d6 {[%emt 0:00:05]} 6. Bb3 {[%emt 0:00:17]} O-O {[%emt 0:00:17]} 7. Re1 {[%emt 0:00:53]} Nbd7 {[%emt 0:00:42]} 8. c3 {[%emt 0:00:12]} Nc5 {[%emt 0:02:24]} 9. Bc2 {[%emt 0:00:10]} Bg4 {[%emt 0:00:23][%cal Bc8g4,Bg4h5,Bh5g6][%mdl 32]} 10. h3 {[%emt 0:01:09]} Bh5 {[%emt 0:00:37]} 11. Nbd2 {[%emt 0:01:58][%cal Bb1d2,Bd2f1,Bf1g3,Bg3e2][%mdl 32]} Ne6 {[%emt 0:00:11]} 12. Nf1 {[%emt 0:00:10]} Nd7 {[%emt 0:00:47]} 13. g4 {[%emt 0:01:32]} Bg6 {[%emt 0:01:10]} 14. Ng3 {[%emt 0:00:11]} Ng5 {[%emt 0:02:18]} 15. Bxg5 {[%emt 0:02:19]} Bxg5 {[%emt 0:01:54]} 16. d4 {[%emt 0:00:14]} Bf4 {[%emt 0:06:04]} 17. Ne2 {[%emt 0:01:37]} Qf6 {[%emt 0:05:10]} 18. Kg2 {[%emt 0:00:19]} h5 {[%emt 0:10:42]} 19. Nxf4 {[%emt 0:03:23]} hxg4 {[%emt 0:00:10]} 20. Ng1 {[%emt 0:08:08]} Qxf4 {[%emt 0:11:46] The position is equal.} 21. Qxg4 {[%emt 0:03:01]} Qxg4+ {[%emt 0:08:41]} 22. hxg4 {[%emt 0:00:05]} Rfe8 {[%emt 0:00:30]} 23. dxe5 {[%emt 0:07:26]} dxe5 {[%emt 0:13:54]} 24. Rad1 {[%emt 0:01:31]} Rad8 {[%emt 0:00:39]} 25. f3 {[%emt 0:10:16] Weighted Error Value: White=0.06 (flawless) /Black=0.06 (flawless) .  OK:         	White=5     	Black=8} 1/2-1/2

[Event "76th Montenegro Championship 2024"]
[Site "Podgorica"]
[Date "2024.02.11"]
[Round "6.7"]
[White "Vujosevic, Vladimir"]
[Black "Zherebtsova, Alexandra"]
[Result "1/2-1/2"]
[ECO "C63"]
[WhiteElo "2335"]
[BlackElo "2270"]
[Annotator "TA"]
[PlyCount "68"]
[EventDate "2024.02.06"]
[EventType "swiss"]
[EventCountry "MNE"]
[SourceTitle "playchess.com"]
[Source "ChessBase"]
[SourceQuality "1"]
[TimeControl "40/5400+30:1800+30"]

{[%evp 11,68,7,16,0,-2,-17,22,-4,-7,-12,-8,-12,10,0,0,0,0,-33,0,0,5,17,22,17,90,90,85,65,138,125,120,123,130,130,272,0,0,-18,-18,-23,-11,-2,-25,-34,-19,-27,-39,-31,-31,-193,-23,-24,-25,-52,-58,-68,-64,-75,-66]} 1. e4 {[%emt 0:00:05]} e5 {[%emt 0:10:40]} 2. Nf3 {[%emt 0:00:17]} Nc6 {[%emt 0:00:25]} 3. Bb5 {[%emt 0:00:28]} f5 {[%emt 0:00:43]} 4. Bxc6 {[%emt 0:01:33]} dxc6 {[%emt 0:01:06]} 5. Nc3 {[%emt 0:00:58]} Nf6 {[%emt 0:01:17]} 6. Qe2 {[%emt 0:01:24]} Bd6 {[%emt 0:00:31]} 7. d3 {[%emt 0:04:16]} (7. d4 {feels hotter.} exd4 8. e5 dxc3 9. exf6+ Kf8 10. fxg7+ Kxg7 11. O-O) 7... f4 {[%emt 0:04:47]} 8. g3 {[%emt 0:10:59]} Qe7 {[%emt 0:26:01]} 9. h3 {[%emt 0:23:36] Prevents Bg4. The position is equal.} fxg3 {[%emt 0:04:51]} 10. fxg3 {[%emt 0:00:12]} Nh5 {[%emt 0:02:27]} 11. Qg2 {[%emt 0:01:09]} O-O {[%emt 0:03:15]} 12. Be3 {[%emt 0:02:52]} Bc5 {[%emt 0:03:21]} 13. Bxc5 {[%emt 0:02:19]} Qxc5 {[%emt 0:00:31]} 14. Kd2 {[%emt 0:00:07] Inhibits Qe3+.} Bd7 {[%emt 0:03:54]} 15. Raf1 {[%emt 0:02:35]} Rf6 {[%emt 0:01:13]} 16. a3 {[%emt 0:10:49]} Raf8 {[%emt 0:01:53]} 17. Nd1 {[%emt 0:01:31]} Rg6 {[%emt 0:03:14] [#]} (17... R8f7 $11) 18. g4 $1 $16 {[%emt 0:00:33]} Nf4 {[%emt 0:01:20]} 19. Qf2 {[%emt 0:01:59]} Qa5+ {[%emt 0:00:59] [#]} (19... Qb5 $14) 20. b4 $1 {[%emt 0:08:15]} ({But not} 20. Kc1 $6 Rgf6 $11) 20... Qxa3 {[%emt 0:03:21]} 21. Nxe5 {[%emt 0:00:25]} Qxb4+ {[%emt 0:04:06]} 22. Nc3 {[%emt 0:04:57] A dynamic duo of knights.} Rd6 {[%emt 0:04:33]} (22... Bc8 $16) 23. Qxa7 $2 {[%emt 0:01:56]} ({Only move:} 23. Qe3 $1 $18) 23... c5 $36 {[%emt 0:09:35][%mdl 2048] Black has some pressure.} 24. Qa2+ {[%emt 0:06:01]} (24. Nxd7 $5 Rxd7 25. Qa4 Qxa4 26. Nxa4 $11) 24... Be6 {[%emt 0:00:08]} 25. Qb1 {[%emt 0:00:19] Strongly threatening Qxb4. Really sharp!} Ra6 $1 {[%emt 0:04:44]} ({Don't play} 25... Qd4 26. Nf3 Qb4 27. Qxb4 cxb4 28. Nb5 $11) 26. Qxb4 {[%emt 0:07:49]} cxb4 {[%emt 0:00:02]} 27. Ne2 {[%emt 0:02:23]} Nxe2 {[%emt 0:00:20]} 28. Rxf8+ {[%emt 0:00:12]} Kxf8 {[%emt 0:00:02]} 29. Kxe2 $15 {[%emt 0:00:20][%mdl 4096] Endgame. KRB-KRN} Ra2 {[%emt 0:00:08]} 30. Kd2 {[%emt 0:00:23]} (30. Rc1 $1 $15) 30... b3 $2 {[%emt 0:00:53]} (30... Bb3 $19 31. Rb1 Rxc2+ 32. Ke3 Rc3) 31. Rc1 $11 {[%emt 0:00:16]} Ke7 {[%emt 0:02:22]} 32. Kc3 {[%emt 0:01:35]} Rxc2+ {[%emt 0:00:27]} 33. Rxc2 {[%emt 0:00:09]} bxc2 {[%emt 0:00:05]} 34. Kxc2 {[%emt 0:00:07]} c5 {[%emt 0:01:13] Weighted Error Value: White=0.25 (precise) /Black=0.33.  Loses game:     	White=1     	---        Missed win:     	White=1     	Black=1      Mistake:       	---       	Black=3      Inaccurate:     	White=3     	Black=2      OK:         	White=11    	Black=8      Best:        	White=2     	Black=1      Strong:       	White=2     	Black=1} 1/2-1/2

[Event "76th Montenegro Championship 2024"]
[Site "Podgorica"]
[Date "2024.02.11"]
[Round "6.10"]
[White "Musovic, Armin"]
[Black "Milovic, Jovan"]
[Result "0-1"]
[ECO "B00"]
[WhiteElo "2268"]
[BlackElo "2223"]
[Annotator "NA RC"]
[PlyCount "132"]
[EventDate "2024.02.06"]
[EventType "swiss"]
[EventCountry "MNE"]
[SourceTitle "playchess.com"]
[Source "ChessBase"]
[SourceQuality "1"]
[TimeControl "40/5400+30:1800+30"]

1. e4 {[%emt 0:00:01]} b6 {[%emt 0:02:12]} 2. Nc3 {[%emt 0:00:06]} Bb7 {[%emt 0:00:04]} 3. Nf3 {[%emt 0:00:44]} e6 {[%emt 0:00:13]} 4. a3 {[%emt 0:01:27]} g5 {[%emt 0:01:52]} 5. d4 {[%emt 0:01:03]} g4 {[%emt 0:00:15]} 6. Ne5 {[%emt 0:01:57]} h5 {[%emt 0:00:09]} 7. h3 {[%emt 0:03:48]} d6 {[%emt 0:00:34]} 8. Nd3 {[%emt 0:00:48]} gxh3 {[%emt 0:07:51]} 9. Rxh3 {[%emt 0:01:56]} h4 {[%emt 0:01:03]} 10. d5 {[%emt 0:14:39]} e5 {[%emt 0:04:45]} 11. Nb4 {[%emt 0:01:12]} a6 {[%emt 0:00:50]} 12. Be3 {[%emt 0:12:34]} Bc8 {[%emt 0:04:24]} 13. Rh1 {[%emt 0:00:04]} Bh6 {[%emt 0:01:18]} 14. Bxh6 {[%emt 0:07:01]} Rxh6 {[%emt 0:02:08]} 15. Qd2 {[%emt 0:01:54]} Qf6 {[%emt 0:00:28]} 16. O-O-O {[%emt 0:02:18]} Ne7 {[%emt 0:01:23]} 17. Kb1 {[%emt 0:08:48]} Qg7 {[%emt 0:10:47]} 18. Be2 {[%emt 0:07:58]} Nd7 {[%emt 0:01:40]} 19. Bg4 {[%emt 0:03:05]} Rh8 {[%emt 0:08:11]} 20. Qe2 {[%emt 0:04:24]} b5 {[%emt 0:02:58]} 21. Rdg1 {[%emt 0:05:07]} Kd8 {[%emt 0:11:27]} 22. Bh3 {[%emt 0:02:34]} Nb6 {[%emt 0:01:55]} 23. Nc6+ {[%emt 0:01:09]} Nxc6 {[%emt 0:00:44]} 24. dxc6 {[%emt 0:00:03]} Be6 {[%emt 0:02:43]} 25. g3 {[%emt 0:01:48]} hxg3 {[%emt 0:00:16]} 26. Rxg3 {[%emt 0:01:16]} Qf8 {[%emt 0:03:18]} 27. Qf3 {[%emt 0:03:23]} Ke7 {[%emt 0:04:56]} 28. Bxe6 {[%emt 0:05:04]} fxe6 {[%emt 0:00:24]} 29. Qg2 {[%emt 0:00:13]} Re8 {[%emt 0:03:48]} 30. Rg7+ {[%emt 0:00:10]} Kd8 {[%emt 0:00:03]} 31. Rxh8 {[%emt 0:00:15]} Qxh8 {[%emt 0:00:08]} 32. a4 {[%emt 0:00:05]} bxa4 {[%emt 0:00:57]} 33. Qg6 {[%emt 0:01:18]} Qh1+ {[%emt 0:01:10]} 34. Ka2 {[%emt 0:00:10]} Qf1 {[%emt 0:00:11]} 35. Rg8 {[%emt 0:03:01]} Qc4+ {[%emt 0:00:13]} 36. Ka1 {[%emt 0:00:04]} Qxc6 {[%emt 0:02:38]} 37. Qf6+ {[%emt 0:00:39]} Kd7 {[%emt 0:00:09]} 38. Qf7+ {[%emt 0:01:14]} Kd8 {[%emt 0:00:24]} 39. Qf6+ {[%emt 0:00:47]} Kd7 {[%emt 0:00:05]} 40. Rxe8 {[%emt 0:00:00]} Kxe8 {[%emt 0:00:00]} 41. Qxe6+ {[%emt 0:05:07]} Kd8 {[%emt 0:00:24]} 42. Qg8+ {[%emt 0:03:10]} Qe8 {[%emt 0:00:44]} 43. Qg4 {[%emt 0:04:44]} Qf7 {[%emt 0:00:31]} 44. Qe2 {[%emt 0:00:16]} a5 {[%emt 0:02:00]} 45. Kb1 {[%emt 0:03:32]} Qc4 {[%emt 0:01:12]} 46. Qxc4 {[%emt 0:00:57]} Nxc4 {[%emt 0:00:02]} 47. Ka2 {[%emt 0:00:14]} Nb6 {[%emt 0:00:33]} 48. Ka3 {[%emt 0:00:30]} Kd7 {[%emt 0:03:07]} 49. Nxa4 {[%emt 0:01:30]} Nc4+ {[%emt 0:00:05]} 50. Ka2 {[%emt 0:00:12]} Kc6 {[%emt 0:00:46]} 51. Nc3 {[%emt 0:01:03]} Nd2 {[%emt 0:00:34]} 52. Ka3 {[%emt 0:00:19]} Kc5 {[%emt 0:00:00]} 53. Ka4 {[%emt 0:00:12]} c6 {[%emt 0:01:31]} 54. Kxa5 {[%emt 0:03:27]} Nc4+ {[%emt 0:00:05]} 55. Ka4 {[%emt 0:00:09]} Nxb2+ {[%emt 0:02:08]} 56. Kb3 {[%emt 0:00:04]} Nc4 {[%emt 0:00:05]} 57. Ne2 {[%emt 0:10:10]} Nd2+ {[%emt 0:00:59]} 58. Kb2 {[%emt 0:00:02]} Nxe4 {[%emt 0:00:10]} 59. f4 {[%emt 0:00:03]} Kc4 {[%emt 0:01:37]} 60. fxe5 {[%emt 0:00:08]} dxe5 {[%emt 0:00:05]} 61. Ng1 {[%emt 0:02:00]} Nc3 {[%emt 0:02:19]} 62. Nf3 {[%emt 0:00:48]} e4 {[%emt 0:00:37]} 63. Ne5+ {[%emt 0:01:31]} Kd5 {[%emt 0:00:07]} 64. Nxc6 {[%emt 0:02:57]} Na4+ {[%emt 0:00:19]} 65. Ka3 {[%emt 0:00:03]} Kxc6 {[%emt 0:00:09]} 66. Kxa4 {[%emt 0:00:04]} e3 {[%emt 0:00:03]} 0-1

[Event "76th Montenegro Championship 2024"]
[Site "Podgorica"]
[Date "2024.02.11"]
[Round "6.11"]
[White "Nikac, Predrag"]
[Black "Skvortsova, Alena"]
[Result "1/2-1/2"]
[ECO "B24"]
[WhiteElo "2304"]
[BlackElo "2111"]
[Annotator "RC"]
[PlyCount "126"]
[EventDate "2024.02.06"]
[EventType "swiss"]
[EventCountry "MNE"]
[SourceTitle "playchess.com"]
[Source "ChessBase"]
[SourceQuality "1"]
[TimeControl "40/5400+30:1800+30"]

1. e4 {[%emt 0:01:00]} c5 {[%emt 0:00:08]} 2. Nc3 {[%emt 0:00:11]} Nc6 {[%emt 0:00:07]} 3. Nge2 {[%emt 0:00:24]} Nf6 {[%emt 0:00:24]} 4. g3 {[%emt 0:00:58]} g6 {[%emt 0:01:01]} 5. Bg2 {[%emt 0:00:21]} Bg7 {[%emt 0:00:08]} 6. O-O {[%emt 0:00:28]} O-O {[%emt 0:00:29]} 7. f4 {[%emt 0:00:37]} d6 {[%emt 0:00:31]} 8. h3 {[%emt 0:00:14]} Rb8 {[%emt 0:01:57]} 9. g4 {[%emt 0:00:27]} Nd4 {[%emt 0:03:29]} 10. Ng3 {[%emt 0:00:24]} Nd7 {[%emt 0:06:05]} 11. Nd5 {[%emt 0:06:59]} e6 {[%emt 0:07:22]} 12. Ne3 {[%emt 0:06:54]} Nb6 {[%emt 0:06:03]} 13. a4 {[%emt 0:01:20]} a5 {[%emt 0:02:00]} 14. c3 {[%emt 0:02:56]} Nc6 {[%emt 0:01:08]} 15. Qb3 {[%emt 0:04:47]} Kh8 {[%emt 0:14:03]} 16. d3 {[%emt 0:02:52]} Ne7 {[%emt 0:04:53]} 17. g5 {[%emt 0:00:51]} d5 {[%emt 0:02:39]} 18. e5 {[%emt 0:00:48]} Nf5 {[%emt 0:09:17]} 19. Nexf5 {[%emt 0:02:53]} exf5 {[%emt 0:03:17]} 20. Qb5 {[%emt 0:01:05]} Nd7 {[%emt 0:10:55]} 21. Be3 {[%emt 0:03:47]} b6 {[%emt 0:00:09]} 22. Qb3 {[%emt 0:02:59]} Bb7 {[%emt 0:04:29]} 23. Bxd5 {[%emt 0:01:09]} Bxd5 {[%emt 0:11:37]} 24. Qxd5 {[%emt 0:00:10]} Nxe5 {[%emt 0:00:08]} 25. Qxd8 {[%emt 0:01:14]} Rbxd8 {[%emt 0:00:08]} 26. fxe5 {[%emt 0:00:20]} Bxe5 {[%emt 0:00:13]} 27. Bf4 {[%emt 0:02:49]} Bxf4 {[%emt 0:00:24]} 28. Rxf4 {[%emt 0:00:05]} Rxd3 {[%emt 0:00:06]} 29. Kg2 {[%emt 0:00:26]} Re8 {[%emt 0:01:40]} 30. Raf1 {[%emt 0:03:02]} Kg7 {[%emt 0:00:55]} 31. R1f2 {[%emt 0:03:10]} f6 {[%emt 0:02:49]} 32. h4 {[%emt 0:02:30]} fxg5 {[%emt 0:01:18]} 33. hxg5 {[%emt 0:00:19]} h6 {[%emt 0:00:06]} 34. gxh6+ {[%emt 0:00:46]} Kxh6 {[%emt 0:00:03]} 35. Nf1 {[%emt 0:00:58]} Re1 {[%emt 0:02:13]} 36. Nd2 {[%emt 0:00:54]} Ra1 {[%emt 0:00:25]} 37. Nf3 {[%emt 0:01:32]} Rd5 {[%emt 0:02:00]} 38. Rh4+ {[%emt 0:08:39]} Kg7 {[%emt 0:00:13]} 39. Re2 {[%emt 0:00:35]} Kf6 {[%emt 0:00:54]} 40. Rh7 {[%emt 0:00:00]} f4 {[%emt 0:00:00]} 41. c4 {[%emt 0:21:50]} Rd6 {[%emt 0:13:22]} 42. Ree7 {[%emt 0:01:29]} g5 {[%emt 0:03:25]} 43. Rhf7+ {[%emt 0:00:46]} Kg6 {[%emt 0:00:05]} 44. Rg7+ {[%emt 0:02:48]} Kh6 {[%emt 0:06:20]} 45. Rh7+ {[%emt 0:04:20]} Kg6 {[%emt 0:00:06]} 46. Reg7+ {[%emt 0:00:25]} Kf6 {[%emt 0:00:53]} 47. Rxg5 {[%emt 0:00:33]} Rd2+ {[%emt 0:00:22]} 48. Nxd2 {[%emt 0:00:31]} Kxg5 {[%emt 0:00:05]} 49. b3 {[%emt 0:00:18]} Kf5 {[%emt 0:01:19]} 50. Kf2 {[%emt 0:00:32]} Ke5 {[%emt 0:00:05]} 51. Rh6 {[%emt 0:01:08]} Ra2 {[%emt 0:00:21]} 52. Ke1 {[%emt 0:03:14]} Kd4 {[%emt 0:00:12]} 53. Rxb6 {[%emt 0:00:36]} f3 {[%emt 0:02:01]} 54. Rf6 {[%emt 0:11:08]} Ra1+ {[%emt 0:01:01]} 55. Kf2 {[%emt 0:00:11]} Ra2 {[%emt 0:00:11]} 56. Rd6+ {[%emt 0:00:16]} Kc3 {[%emt 0:00:20]} 57. Ke3 {[%emt 0:02:04]} f2 {[%emt 0:00:50]} 58. Rd3+ {[%emt 0:08:05]} Kc2 {[%emt 0:00:04]} 59. Rd5 {[%emt 0:03:36]} Kc3 {[%emt 0:01:00]} 60. Rxc5 {[%emt 0:07:42]} Rxd2 {[%emt 0:00:17]} 61. Rf5 {[%emt 0:00:46]} Rd1 {[%emt 0:01:03]} 62. Ke2 {[%emt 0:01:24]} Rd2+ {[%emt 0:00:30]} 63. Ke3 {[%emt 0:01:16]} Rd1 {[%emt 0:00:07]} 1/2-1/2

[Event "76th Montenegro Championship 2024"]
[Site "Podgorica"]
[Date "2024.02.11"]
[Round "6.12"]
[White "Djukanovic, Sreten"]
[Black "Kalezic, Blazo"]
[Result "0-1"]
[ECO "D47"]
[WhiteElo "2068"]
[BlackElo "2407"]
[Annotator "TA"]
[PlyCount "80"]
[EventDate "2024.02.06"]
[EventType "swiss"]
[EventCountry "MNE"]
[SourceTitle "playchess.com"]
[Source "ChessBase"]
[SourceQuality "1"]
[TimeControl "40/5400+30:1800+30"]

{[%evp 19,80,44,28,0,0,7,0,0,0,0,4,-11,10,0,0,0,0,0,8,-22,-12,-65,-79,-73,-52,-83,-79,-133,-133,-125,-125,-129,-129,-133,-125,-133,-125,-141,-102,-89,0,-139,-129,-142,-135,-139,-43,-37,-7,-20,-6,-91,-84,-219,-219,-217,-206,-206,-156,-272,-246,-261,-246]} 1. d4 {[%emt 0:00:21]} d5 {[%emt 0:00:15]} 2. c4 {[%emt 0:00:05]} c6 {[%emt 0:00:08]} 3. e3 {[%emt 0:00:26]} Nf6 {[%emt 0:00:47]} 4. Nc3 {[%emt 0:00:06]} e6 {[%emt 0:00:22]} 5. Nf3 {[%emt 0:00:08]} Nbd7 {[%emt 0:00:08]} 6. Bd3 {[%emt 0:00:07]} dxc4 {[%emt 0:00:18]} 7. Bxc4 {[%emt 0:00:02]} b5 {[%emt 0:00:10]} 8. Bd3 {[%emt 0:00:54]} Bb7 {[%emt 0:00:36]} 9. O-O {[%emt 0:00:33]} Be7 {[%emt 0:00:23]} 10. e4 {[%emt 0:08:11]} b4 {[%emt 0:00:16]} 11. e5 {[%emt 0:10:30]} bxc3 {[%emt 0:00:09]} 12. exf6 {[%emt 0:00:05]} Bxf6 {[%emt 0:00:25]} 13. bxc3 {[%emt 0:00:34] The position is equal.} c5 {[%emt 0:00:30]} 14. Bf4 {[%emt 0:07:08]} cxd4 {[%emt 0:07:03]} 15. Nxd4 {[%emt 0:11:14]} e5 {[%emt 0:04:41]} (15... O-O $5 16. Bd6 Bxd4 17. cxd4 Qg5 $15) 16. Nf5 {[%emt 0:03:58] Nd6+ would now be deadly.} O-O {[%emt 0:00:45]} 17. Be3 {[%emt 0:04:09]} Nb6 {[%emt 0:00:40]} 18. Nd6 {[%emt 0:03:51]} Bc6 {[%emt 0:01:27]} 19. Ne4 {[%emt 0:24:46]} (19. Rc1 {looks sharper.} Nd5 20. c4 Qxd6 21. cxd5 Qxd5 22. Bxh7+ Kxh7 23. Qc2+) 19... Be7 {[%emt 0:02:46]} 20. f3 {[%emt 0:05:31]} (20. Re1 $11) 20... Nd5 {[%emt 0:01:58]} 21. Bf2 {[%emt 0:01:04]} Qa5 {[%emt 0:02:06][%cal Od5f4]} 22. Re1 {[%emt 0:07:41]} Rfd8 {[%emt 0:02:17][%cal Od5f4] And now ...Nf4! would win.} (22... Nxc3 $2 23. Nxc3 Bb4 (23... Qxc3 $2 24. Rc1 $18) 24. Ne4 $18) 23. Qc2 {[%emt 0:03:26]} (23. Bg3 $142) 23... Ba4 $1 $17 {[%emt 0:01:45]} 24. Qc1 {[%emt 0:00:50] [#]} Rac8 $1 {[%emt 0:01:37][%cal Rd5c3]} 25. Qb2 {[%emt 0:02:23]} Nxc3 {[%emt 0:06:16]} 26. Nxc3 {[%emt 0:01:08]} Rxc3 {[%emt 0:00:32]} ({Don't take} 26... Rxd3 27. Nxa4 Qxa4 28. Qxe5 $15) ({Don't play} 26... Qxc3 27. Qxc3 Rxc3 28. Bf1 $15) 27. Bf1 {[%emt 0:02:05]} Rc2 {[%emt 0:03:42]} 28. Qb7 {[%emt 0:01:54]} Rc7 {[%emt 0:00:36]} 29. Qb2 {[%emt 0:01:05]} Rc2 {[%emt 0:05:36]} (29... Bd6 $142 {Threatens to win with ...Rc2.} 30. Rac1 Re7) 30. Qb7 $1 {[%emt 0:00:20]} Bc5 $36 {[%emt 0:00:09][%mdl 2048] Black is on the roll.} 31. Bxc5 {[%emt 0:00:44]} Qxc5+ {[%emt 0:00:13]} 32. Kh1 {[%emt 0:00:02]} g6 {[%emt 0:02:12] Black has more active pieces.} ({Better is} 32... Bc6 $17 33. Qc7 Re8) 33. Qe4 $15 {[%emt 0:00:46][%csl LRa4,LRe5]} Qa3 {[%emt 0:13:10]} 34. Qxe5 {[%emt 0:00:37]} Rxa2 {[%emt 0:03:54]} 35. Rxa2 {[%emt 0:00:14]} (35. Qc7 $11 {remains equal.} Rf8 (35... Rxa1 $2 36. Qxd8+ Qf8 37. Qxf8+ Kxf8 38. Rxa1 $18) 36. Rxa2 Qxa2 37. Qxa7) 35... Qxa2 $17 {[%emt 0:00:08]} 36. Qe7 {[%emt 0:00:56] This costs White the game.} (36. Kg1 $17 {was worth a try.}) 36... Re8 $19 {[%emt 0:01:50]} 37. Qh4 {[%emt 0:00:21] [#]} Rxe1 38. Qxe1 {[%emt 0:00:01]} Bb3 {[%emt 0:01:25]} 39. Qe8+ {[%emt 0:01:07]} (39. h4 $17 {is a better defense.}) 39... Kg7 {[%emt 0:00:07] aiming for ...Qa1.} 40. Qe5+ {[%emt 0:00:00]} f6 {[%emt 0:39:08] Weighted Error Value: White=0.22 (precise) /Black=0.13 (very precise) .  Mistake:       	White=5     	Black=2      Inaccurate:     	White=2     	Black=1      OK:         	White=9     	Black=9      Best:        	White=2     	Black=5      Strong:       	White=1     	Black=2} 0-1